Cogmind - Beta 15 @@@ ROGUE MODE // 2025.05.29 @ 03:41:55 // AFD2019/Pay2Buy Player: celerysam Result: Destroyed by 62-BPE(R) with Subdweller Beam Cannon Performance ------------- Evolutions (0) 0 Regions Visited (2) 400 Robots Destroyed (18) 90 Value Destroyed (498) 498 Prototype IDs (0) 0 Alien Tech Used (0) 0 Bonus (0) 0 TOTAL SCORE: 988 Bonus ------- None Cogmind --------- Core Integrity 0/250 Matter 288/300 Energy 99/100 System Corruption 0% Temperature Cool (9) Movement Core (50) Location -10/Subcaves Parts ------- > --- POWER (1) -------- (None) > --- PROPULSION (2) --- (None) > --- UTILITY (2) ------ (None) > --- WEAPON (2) ------- Light Cannon > --- INVENTORY (10) --- Riot Gun Beam Cannon Subdweller Machine Gun Barrage Gun Peak State ------------ > --- POWER ------------ Improved Ion Engine > --- PROPULSION ------- Improved Hover Unit Improved Hover Unit > --- UTILITY ---------- Light Armor Plating > --- WEAPON ----------- Spread Laser Mining Laser > --- INVENTORY -------- (None) [Rating: 10] Favorites ----------- Power Improved Ion Engine Engine Improved Ion Engine Propulsion Improved Hover Unit Hover Unit Improved Hover Unit Utility Light Armor Plating Protection Light Armor Plating Weapon Light Cannon Energy Gun Spread Laser Energy Cannon Beam Cannon Ballistic Cannon Light Cannon Special Weapon Mining Laser Piercing Weapon Makeshift Spear Build | -11 -10 -10 ------- Run | Yrd Mat Sub Slots Evolved . | . . . Power . | . . . Propulsion . | . . . Utility . | . . . Weapon . | . . . Parts Attached 5 | . 3 2 Power . | . . . Engine . | . . . Core . | . . . Reactor . | . . . Propulsion 1 | . 1 . Treads . | . . . Leg . | . . . Wheel . | . . . Hover 1 | . 1 . Flight . | . . . Utility 1 | . 1 . Device . | . . . Storage . | . . . Processor . | . . . Hackware . | . . . Protection 1 | . 1 . Artifact . | . . . Weapon 3 | . 1 2 Energy Gun . | . . . Energy Cannon 1 | . . 1 Ballistic Gun . | . . . Ballistic Cannon 1 | . 1 . Launcher . | . . . Special Weapon . | . . . Impact Weapon . | . . . Slashing Weapon . | . . . Piercing Weapon 1 | . . 1 Special Melee Weapon . | . . . Unidentified Prototypes . | . . . Parts Lost 9 | . 3 6 Power 1 | . 1 . Propulsion 3 | . 1 2 Utility 1 | . . 1 Weapon 4 | . 1 3 Highest Loss Streak 5 | . 1 5 To Critical Strikes . | . . . Average Backups 2 | . . 3 Power . | . . . Propulsion . | . . . Utility . | . . . Weapon 2 | . . 3 Tool/Special . | . . . Unused Backups 3 | . . 3 Power . | . . . Propulsion . | . . . Utility . | . . . Weapon 3 | . . 3 Tool/Special . | . . . Average Slot Usage (%) 42 | . 76 29 Engine 2 | . 7 . Hover 8 | . 27 1 Protection 4 | . 14 . Energy Gun 4 | . 14 . Ballistic Cannon 12 | . 10 13 Piercing Weapon 9 | . . 12 Peak Build Rating 10 | 10 10 8 Average Rating 6 | 10 8 4 On Entrance 6 | . 10 8 Naked Turns . | . . . Heaviest Build 16 | 14 16 9 Greatest Support 14 | 14 14 14 Greatest Overweight (x) 1 | . 1 1 Average Overweight (x) . | . . . Largest Inventory Capacity 10 | 10 10 10 Average Capacity 10 | 10 10 10 Most Carried 4 | . 2 4 Average Carried 2 | . . 3 Final Capacity 10 | 10 10 10 Final Carried 4 | . . 4 Class Distribution -------------------- 100% | Mutant Dominant Class ---------------- Mutant | -10/Materials Mutant | -10/Subcaves Resources | -11 -10 -10 ----------- Run | Yrd Mat Sub Matter Collected 421 | . 351 70 Remotely . | . . . Salvage Created 449 | . 346 103 Parts . | . . . Haulers Intercepted 1 | . 1 . Recyclers Shooed . | . . . Parts Field Recycled . | . . . Retrieved Matter . | . . . Parts Self-Destructed . | . . . Prevented . | . . . Kills | -11 -10 -10 ------- Run | Yrd Mat Sub Combat Hostiles Destroyed 15 | . 12 3 Guns 8 | . 7 1 Cannons 7 | . 5 2 Classes Destroyed 6 | . 5 1 Worker 1 | . 1 . Hauler 1 | . 1 . Watcher 1 | . 1 . Swarmer 3 | . 3 . Grunt 9 | . 9 . Subdweller 3 | . . 3 Best Kill Streak 5 | . 5 1 Combat Bots Only 4 | . 4 1 Max Kills in Single Turn 1 | . 1 1 Gunslinging . | . . . Exploded . | . . . Melee . | . . . Uniques/NPCs Destroyed . | . . . Combat | -11 -10 -10 -------- Run | Yrd Mat Sub Hostile Shots Fired 106 | . 66 40 Missed 38 | . 24 14 Hits 68 | . 42 26 Projectile 68 | . 42 26 Critical Strikes 4 | . 1 3 Damage Taken 1007 | . 422 585 Core 279 | . 16 263 Absorbed by Shields . | . . . Core Remaining (%) 100 | 100 . . Volleys Fired 83 | . 48 35 Largest 2 | . 2 2 Hottest 165 | . 165 95 Shots Fired 108 | . 72 36 Gun 40 | . 37 3 Cannon 67 | . 34 33 Launcher . | . . . Special 1 | . 1 . Kinetic 57 | . 34 23 Thermal 51 | . 38 13 Explosive . | . . . Electromagnetic . | . . . Robot Hit Streak 9 | . 9 9 Robot Miss Streak 10 | . 10 1 Penetration Max . | . . . Secondary Targets . | . . . Shots Hit Robots 79 | . 53 26 Core Hits 60 | . 50 10 Critical Kills . | . . . Critical Parts Destroyed . | . . . Critical Strikes . | . . . Melee Attacks . | . . . Impact . | . . . Slashing . | . . . Piercing . | . . . Sneak Attacks . | . . . Combat Hostiles . | . . . Follow-up Attacks . | . . . Damage Inflicted 1096 | . 750 346 Guns 449 | . 395 54 Cannons 647 | . 355 292 Explosions . | . . . Melee . | . . . Ramming . | . . . Kinetic 491 | . 355 136 Thermal 605 | . 395 210 Explosive . | . . . Electromagnetic . | . . . Impact . | . . . Slashing . | . . . Piercing . | . . . Highest Corruption . | . . . Average Corruption . | . . . Corruption Purged . | . . . Corruption Blocked . | . . . Overload Shots . | . . . Overflow Damage . | . . . Projectiles . | . . . Explosions . | . . . Melee . | . . . Knockbacks 4 | . 2 2 Impact . | . . . Kinetic 4 | . 2 2 Secondary . | . . . Self-Inflicted Damage . | . . . Shots . | . . . Rammed . | . . . Targets Rammed . | . . . Kicked . | . . . Crushed . | . . . Highest Temperature 477 | . 477 . Average Temperature 169 | . 169 . Received Heat Transfer 189 | . 153 36 Effects 5 | . 5 . Shutdowns 3 | . 3 . Energy Bleed 1 | . 1 . Short Circuit 1 | . 1 . Siege Activations . | . . . Martial Activations . | . . . Shielding Activations . | . . . Robots Disrupted . | . . . Combat Hostiles . | . . . Robots Corrupted . | . . . Combat Hostiles . | . . . Parts Fried . | . . . Impact Corruptions . | . . . Robots Melted . | . . . Combat Hostiles . | . . . Parts Melted . | . . . Heat Transferred 888 | . 485 403 Parts Sabotaged . | . . . Parts Stolen . | . . . Parts Stripped . | . . . Power Chain Reactions . | . . . Alert | -11 -10 -10 ------- Run | Yrd Mat Sub Maximum Alert Level . | . . . Low Security (%) 100 | 100 100 . Level 1 . | . . . Level 2 . | . . . Level 3 . | . . . Level 4 . | . . . Level 5 . | . . . High Security . | . . . Max Security . | . . . Peak Influence 170 | . 170 . Initial . | . . . Average 107 | . 110 . Influence Increases 326 | . 326 . Destroy 0b10 Robot/C 240 | . 240 . Destroy 0b10 Robot/NC 15 | . 15 . Destroy Leader 54 | . 54 . Disable Machine 15 | . 15 . Destroy Structure 2 | . 2 . Influence Decreases 326 | . 191 135 Entered New Map 66 | . . 66 Time Decay 190 | . 170 20 Lost Part 70 | . 21 49 Squads Dispatched 3 | . 3 . Investigation 1 | . 1 . Extermination . | . . . Reinforcement 2 | . 2 . Assault . | . . . Garrison . | . . . Intercept . | . . . Searches Triggered . | . . . Construction Impeded . | . . . Haulers Reinforced . | . . . Active Scanning Responses . | . . . Cargo Convoy Interrupts . | . . . Stealth | -11 -10 -10 --------- Run | Yrd Mat Sub Distress Signals 2 | . 2 . Communications Jammed . | . . . Distress Signals . | . . . Times Spotted 24 | . 19 5 Peak Tracking Total 6 | . 6 2 Tactical Retreats . | . . . Traps | -11 -10 -10 ------- Run | Yrd Mat Sub Traps Triggered 2 | . 2 . Indirectly . | . . . Trap Hack Attempts . | . . . Triggered . | . . . Disarmed . | . . . Reprogrammed . | . . . Reused . | . . . Traps Extracted . | . . . Installed . | . . . Triggered . | . . . Machines | -11 -10 -10 ---------- Run | Yrd Mat Sub Machines Disabled 1 | . 1 . Max in Single Turn 1 | . 1 . Machines Repaired . | . . . Machines Dismantled . | . . . Machines Sabotaged . | . . . Overloaded Fab Kills . | . . . Hacking | -11 -10 -10 --------- Run | Yrd Mat Sub Machines Accessed . | . . . Terminals . | . . . Fabricators . | . . . Repair Stations . | . . . Recycling Units . | . . . Scanalyzers . | . . . Garrison Access . | . . . Total Hacks . | . . . Successful . | . . . Failed . | . . . Catastrophic . | . . . Database Lockouts . | . . . Manual . | . . . Terminals . | . . . Fabricators . | . . . Repair Stations . | . . . Recycling Units . | . . . Scanalyzers . | . . . Garrison Access . | . . . Terminal Hacks . | . . . Fabricator Hacks . | . . . Repair Station Hacks . | . . . Recycling Unit Hacks . | . . . Scanalyzer . | . . . Garrison Access Hacks . | . . . Unauthorized Hacks . | . . . Terminals . | . . . Fabricators . | . . . Repair Stations . | . . . Recycling Units . | . . . Scanalyzers . | . . . Garrison Access . | . . . Data Cores Recovered . | . . . Used . | . . . Hacking Detections . | . . . Full Trace Events . | . . . Feedback Events . | . . . Feedback Blocked . | . . . Robot Schematics Acquired . | . . . Robots Built . | . . . Authchips . | . . . Time . | . . . Total Robot Build Rating . | . . . Part Schematics Acquired . | . . . Parts Built . | . . . Authchips . | . . . Time . | . . . Total Part Build Rating . | . . . Parts Repaired . | . . . Time . | . . . Parts Recycled . | . . . Recycled Matter . | . . . Retrieved Matter . | . . . Retrieved Components . | . . . Parts Scanalyzed . | . . . Part Schematics Acquired . | . . . Parts Damaged . | . . . Bothacking | -11 -10 -10 ------------ Run | Yrd Mat Sub Used RIF Installer . | . . . Robots Hacked . | . . . Non-combat . | . . . Combat . | . . . Robot Hacks Applied . | . . . Relay Couplers Released . | . . . Fabnet Peak Effective % . | . . . Robots Rewired . | . . . Allies Hacked . | . . . Hacks Repelled . | . . . Allies | -11 -10 -10 -------- Run | Yrd Mat Sub Total Allies . | . . . Largest Group . | . . . Highest-Rated Group . | . . . Highest-Rated Ally . | . . . Total Orders . | . . . Ally Attacks . | . . . Total Damage . | . . . Kills . | . . . Allies Corrupted . | . . . Allies Melted . | . . . Intel | -11 -10 -10 ------- Run | Yrd Mat Sub Active Infowar (turns) . | . . . Robot Analysis Total . | . . . Derelict Logs Recovered . | . . . Drone Launches . | . . . Drone Recoveries . | . . . Exploration | -11 -10 -10 ------------- Run | Yrd Mat Sub Turns Passed 1343 | 10 377 956 Spaces Moved 1223 | 18 318 887 Core 872 | . . 872 Treads . | . . . Legs . | . . . Wheels . | . . . Hover 351 | 18 318 15 Flight . | . . . Fastest Speed 50 | 56 56 50 Average Speed 90 | 56 70 98 Slowest Speed 120 | 56 120 100 Overloaded Moves . | . . . Propulsion Burnouts . | . . . Robots Hopped . | . . . Potential Cave-ins . | . . . Cave-ins Triggered . | . . . Exploration Rate (%) 45 | 4 65 68 Regions Visited 2 Branch Regions 1 Pre-discovered Areas . | . . . Known Exits Taken . | . . . Unknown Exits Taken 2 | 1 1 . Scrap Searched . | . . . Spaces Dug . | . . . Terrain Destroyed 1 | . 1 . Melee . | . . . Projectile 1 | . 1 . AOE . | . . . Terrain Rammed . | . . . Walls Destroyed . | . . . Machines Disabled . | . . . Actions | -11 -10 -10 --------- Run | Yrd Mat Sub Total 1343 | 17 396 930 Wait 24 | . 23 1 Move 1221 | 17 317 887 Hop . | . . . Pick Up 8 | . 3 5 Fast Attach . | . . . Attach 4 | . 3 1 Detach . | . . . Swap 1 | . . 1 Drop 2 | . 2 . Fire 83 | . 48 35 Melee . | . . . Ram . | . . . Kick . | . . . Crush . | . . . Escape Stasis . | . . . Rewire . | . . . Trap . | . . . Miscellaneous . | . . . Route ------- -11/Scrapyard -10/Materials (discovered 4 exits: [*Mat x2] / [*Min] / [*Sub]) -10/Subcaves (discovered 1 exit: [*Mat]) History --------- Turn | Location | Event 3 | -11/Scrapyard | Discovered new exit (range 15) 11 | -11/Scrapyard | Entered Materials 79 | -10/Materials | Discovered new exit (range 15) 163 | -10/Materials | Discovered new exit (range 13) 214 | -10/Materials | Discovered new exit (range 13) 307 | -10/Materials | Build established: Mutant 354 | -10/Materials | Discovered new exit (range 9) 388 | -10/Materials | Entered Subcaves 431 | -10/Subcaves | Core integrity fell below 50% 441 | -10/Subcaves | Shifting Twisted Machinery released Mak. Spear 442 | -10/Subcaves | Shifting Twisted Machinery released Barrage Gun 465 | -10/Subcaves | Lost 5 parts (2n1u2w) 578 | -10/Subcaves | Shifting Twisted Machinery released Riot Gun 604 | -10/Subcaves | Shifting Twisted Machinery released Sub. Machine Gun 1157 | -10/Subcaves | Disturbed a concealed Subdweller 1323 | -10/Subcaves | Discovered new exit (range 10) 1341 | -10/Subcaves | Core integrity fell below 20% 1344 | -10/Subcaves | Destroyed by 62-BPE(R) with Subdweller Beam Cannon Last Messages --------------- [DISCOUNT: For the next 96 turns enjoy 50% off any Leg!] [DISCOUNT: For the next 73 turns enjoy 50% off any Hover Unit!] [SPECIAL: For the next 500 turns your loot boxes might contain... AD-0RF's Magmablaster!] [DISCOUNT: For the next 80 turns enjoy 50% off any Processor!] 01159_ OD-BYW(R) affixes Scrap Shield Fragment to Scrap Shield. 01162_ OD-BYW(R) knocked back. 01163_ Acquired 3 matter. 01171_ OD-BYW(R) destroyed. 01173_ Acquired 14 matter. 01175_ Acquired 3 matter. [DISCOUNT: For the next 146 turns enjoy 50% off any Ballistic Gun!] 01307_ VF-5ZX(u) tweaks Twisted Machinery. 01323_ EXIT=FOUND 01342_ Mak. Spear destroyed. Map ----- +----------------------------------------------------+ | | | | | | | | | | | | | ?????????????????????????????????????????????????? | | ?????????????????????????????????????????????????? | | ?????????????????????????????????????????????????? | | ?????????????????????????????????????????????????? | | ?????????????????????????????????????????????????? | | ?????????????????????????????????????????????????? | | ?????????????????????????????????????????????????? | | ?????????????????????????????????????????????????? | | ?????????????????????????????????????????????????? | | ?????????????????????????????????????????????????? | | ?????????????????????????????????????????????????? | | ?????????????????????????????????????????????????? | | ?????????????????????????????????????????????????? | | ?????????????????????????????????????????????????? | | ?????????#######?????????????????????????????????? | | ????????## ##????????????????????????????????? | | ??????### #????????????????????????????????? | | ??????# #?###????###?###?##?????? ###????? | | ??????# ### ###### ### ## #### "????? | | ####### @ R "???? | | "" R " "??????? | | "" ## # #####; ########""???????? | | ###### ###" ### "###???####????????????????? | | ?????# ##?### ##"##?????????????????????????? | | ?????# #????#" "" ??????????????????????????? | | ?????### #????#"""#"" ??????????????????????????? | | ???????# ##????######""??????????????????????????? | | ???????###??????????#" ??????????????????????????? | | ??????????????????????< ?????????????????????????? | | ??????????????????????"#?????????????????????????? | | ???????????????????????#?????????????????????????? | | ?????????????????????????????????????????????????? | | ?????????????????????????????????????????????????? | | ?????????????????????????????????????????????????? | | ?????????????????????????????????????????????????? | | ?????????????????????????????????????????????????? | | ?????????????????????????????????????????????????? | | ?????????????????????????????????????????????????? | | ?????????????????????????????????????????????????? | | ?????????????????????????????????????????????????? | | ?????????????????????????????????????????????????? | | ?????????????????????????????????????????????????? | | ?????????????????????????????????????????????????? | | ?????????????????????????????????????????????????? | +----------------------------------------------------+ Best States ------------- Heat Dissipation 25 Energy Generation 12 Energy Capacity 265 Matter Stores 300 Matter Capacity 300 Sight Range 16 Terrain Scan Density 10 Armor Coverage 150 Evasion (%) 53 Item Schematics ----------------- None Robot Schematics ------------------ None Fabricated ------------ Nothing Repaired ---------- Nothing Alien Tech Used ----------------- None Achievements -------------- None Challenges ------------ None Cogshop Purchases (10) ------------------------ Imp. Hover Unit (874) Imp. Hover Unit (874) Imp. Ion Engine (699) Spread Laser (699) Lgt. Armor Plating (599) Mining Laser (599) Imp. Hover Unit (874) Lgt. Cannon (659) Imp. Hover Unit (1257) Lgt. Cannon (677) Game ------ Seed NavigationBiocellThrower Manual? 0 Play Time 00:12:57 Cumulative 267.9 hours Start 2025.05.29 @ 03:30:40 End 2025.05.29 @ 03:41:55 Sessions 1 Manual Loads 0 Difficulty Rogue Special Mode AFD2019/Pay2Buy Game No. 413 Rogue 413 Adventurer 0 Explorer 0 Win Type - Total 1 Types 1/0/0/0/0/0/0/0/0/0 Lore% 64 Gallery% 63 Achievement% 43 Wizard Run 0 Options --------- Layout 1 ASCII 0 Keyboard 0 Movement Mouse Keybinds 0 Fullscreen 2 Font 24/Smallcaps Map View 50x35 Zoom Use 0% Tactical HUD 1 Map Filters NONE Filters NONE Steam 1 RUN: 5e4f6f89-1085-4094-8db7-9ed433268fd4